[Event "Titled Tuesday Blitz May 23 Early 2023"]
[White "Ljukin, Sergei"]
[Black "Domingo Nunez, Ruben"]
[WhiteFideId "14102200"]
[BlackFideId "22245570"]
[WhiteElo "2312"]
[BlackElo "2404"]
[Result "0-1"]
[Round "09"]
[TimeControl "180+2"]
[Date "2023.05.23"]
[WhiteClock "0:00:04"]
[BlackClock "0:00:56"]

1. e4 {[%clk 0:02:48]}  g6 {[%clk 0:03:00]} 2. d4 {[%clk 0:02:48]}  Bg7 {[%clk 0:03:01]} 3. Nc3 {[%clk 0:02:48]}  c6 {[%clk 0:03:02]} 4. Bc4 {[%clk 0:02:47]}  d5 {[%clk 0:03:03]} 5. exd5 {[%clk 0:02:48]}  b5 {[%clk 0:03:04]} 6. Be2 {[%clk 0:02:48]}  b4 {[%clk 0:03:04]} 7. Na4 {[%clk 0:02:48]}  cxd5 {[%clk 0:03:05]} 8. a3 {[%clk 0:02:48]}  bxa3 {[%clk 0:03:06]} 9. Rxa3 {[%clk 0:02:49]}  Nf6 {[%clk 0:03:06]} 10. Nf3 {[%clk 0:02:49]}  O-O {[%clk 0:03:07]} 11. O-O {[%clk 0:02:49]}  Bg4 {[%clk 0:03:08]} 12. Nc5 {[%clk 0:02:43]}  Nc6 {[%clk 0:03:07]} 13. c3 {[%clk 0:02:41]}  e6 {[%clk 0:03:07]} 14. h3 {[%clk 0:02:33]}  Bxf3 {[%clk 0:03:07]} 15. Bxf3 {[%clk 0:02:34]}  a5 {[%clk 0:03:06]} 16. Bf4 {[%clk 0:02:31]}  Qb6 {[%clk 0:03:04]} 17. Qe2 {[%clk 0:02:17]}  Rfe8 {[%clk 0:03:02]} 18. Be3 {[%clk 0:02:04]}  Qb8 {[%clk 0:02:13]} 19. Rfa1 {[%clk 0:01:43]}  e5 {[%clk 0:02:13]} 20. dxe5 {[%clk 0:01:34]}  Nxe5 {[%clk 0:02:13]} 21. b3 {[%clk 0:00:38]}  Nxf3+ {[%clk 0:01:56]} 22. Qxf3 {[%clk 0:00:36]}  Ne4 {[%clk 0:01:57]} 23. Bd4 {[%clk 0:00:19]}  Nxc5 {[%clk 0:01:19]} 24. Bxc5 {[%clk 0:00:20]}  Qb5 {[%clk 0:01:19]} 25. b4 {[%clk 0:00:19]}  a4 {[%clk 0:01:15]} 26. Qxd5 {[%clk 0:00:19]}  Rad8 {[%clk 0:01:10]} 27. Qf3 {[%clk 0:00:17]}  Rd3 {[%clk 0:01:10]} 28. Qg4 {[%clk 0:00:11]}  Bxc3 {[%clk 0:01:10]} 29. Rb1 {[%clk 0:00:09]}  Bf6 {[%clk 0:00:56]} 30. Rd1 {[%clk 0:00:04]}  Rxa3 {[%clk 0:00:56]} 0-1


[Site "https://www.chess.com"]

[Event "Titled Tuesday Blitz May 23 Early 2023"]
[White "Stribuk, Artiom"]
[Black "Mazarini41"]
[WhiteFideId "13515659"]
[WhiteElo "2303"]
[BlackElo "2489"]
[Result "1-0"]
[Round "09"]
[TimeControl "180+2"]
[Date "2023.05.23"]
[WhiteClock "0:00:04"]
[BlackClock "0:00:00"]

1. d4 {[%clk 0:02:55]}  Nf6 {[%clk 0:02:59]} 2. c4 {[%clk 0:02:54]}  g6 {[%clk 0:02:59]} 3. g3 {[%clk 0:02:54]}  Bg7 {[%clk 0:02:59]} 4. Bg2 {[%clk 0:02:55]}  O-O {[%clk 0:02:59]} 5. Nc3 {[%clk 0:02:55]}  d6 {[%clk 0:02:59]} 6. Nf3 {[%clk 0:02:56]}  Nc6 {[%clk 0:03:00]} 7. O-O {[%clk 0:02:56]}  a6 {[%clk 0:02:58]} 8. b3 {[%clk 0:02:56]}  Rb8 {[%clk 0:02:55]} 9. d5 {[%clk 0:02:52]}  Na5 {[%clk 0:02:49]} 10. Bg5 {[%clk 0:02:51]}  c5 {[%clk 0:02:46]} 11. dxc6 {[%clk 0:02:45]}  Nxc6 {[%clk 0:02:46]} 12. Rc1 {[%clk 0:02:46]}  Bd7 {[%clk 0:02:43]} 13. Ne1 {[%clk 0:02:07]}  b5 {[%clk 0:02:20]} 14. cxb5 {[%clk 0:02:03]}  axb5 {[%clk 0:02:20]} 15. Nd3 {[%clk 0:02:04]}  h6 {[%clk 0:02:04]} 16. Bxf6 {[%clk 0:01:48]}  Bxf6 {[%clk 0:02:04]} 17. Nxb5 {[%clk 0:01:48]}  Rxb5 {[%clk 0:01:21]} 18. Bxc6 {[%clk 0:01:46]}  Bxc6 {[%clk 0:01:18]} 19. Rxc6 {[%clk 0:01:47]}  Qa8 {[%clk 0:01:14]} 20. Qc2 {[%clk 0:01:47]}  h5 {[%clk 0:01:11]} 21. a4 {[%clk 0:01:35]}  Rxb3 {[%clk 0:01:04]} 22. Qxb3 {[%clk 0:01:14]}  Qxc6 {[%clk 0:01:04]} 23. Rc1 {[%clk 0:01:13]}  Qa6 {[%clk 0:01:00]} 24. Nf4 {[%clk 0:01:00]}  Ra8 {[%clk 0:00:53]} 25. Rc4 {[%clk 0:00:36]}  e6 {[%clk 0:00:44]} 26. e3 {[%clk 0:00:21]}  d5 {[%clk 0:00:43]} 27. Rb4 {[%clk 0:00:21]}  Be7 {[%clk 0:00:42]} 28. Rb7 {[%clk 0:00:21]}  Bd6 {[%clk 0:00:39]} 29. Rb6 {[%clk 0:00:21]}  Qa7 {[%clk 0:00:19]} 30. Rxd6 {[%clk 0:00:20]}  Rb8 {[%clk 0:00:20]} 31. Qc2 {[%clk 0:00:20]}  Rb4 {[%clk 0:00:13]} 32. Nxe6 {[%clk 0:00:18]}  Qe7 {[%clk 0:00:08]} 33. Rc6 {[%clk 0:00:13]}  Rb8 {[%clk 0:00:06]} 34. Nf4 {[%clk 0:00:13]}  d4 {[%clk 0:00:05]} 35. exd4 {[%clk 0:00:12]}  Kh7 {[%clk 0:00:04]} 36. h4 {[%clk 0:00:11]}  Rd8 {[%clk 0:00:04]} 37. d5 {[%clk 0:00:11]}  Qe1+ {[%clk 0:00:03]} 38. Kg2 {[%clk 0:00:11]}  Qe5 {[%clk 0:00:03]} 39. a5 {[%clk 0:00:11]}  Rb8 {[%clk 0:00:02]} 40. Rc3 {[%clk 0:00:06]}  Qd6 {[%clk 0:00:01]} 41. Rb3 {[%clk 0:00:05]}  Ra8 {[%clk 0:00:02]} 42. Rb7 {[%clk 0:00:05]}  Kg8 {[%clk 0:00:01]} 43. Qc6 {[%clk 0:00:04]}  Qe5 {[%clk 0:00:01]} 44. Qd7 {[%clk 0:00:04]}  Qe4+ {[%clk 0:00:02]} 45. Kh2 {[%clk 0:00:04]}  Rf8 {[%clk 0:00:02]} 46. a6 {[%clk 0:00:04]}  Qf3 {[%clk 0:00:02]} 47. Kg1 {[%clk 0:00:03]}  Qd1+ {[%clk 0:00:02]} 48. Kg2 {[%clk 0:00:03]}  Qa1 {[%clk 0:00:01]} 49. a7 {[%clk 0:00:04]}  Qa6 {[%clk 0:00:01]} 50. Rb8 {[%clk 0:00:04]}  Qxa7 {[%clk 0:00:00]} 51. Qxa7 {[%clk 0:00:04]} 1-0


[Site "https://www.chess.com"]

[Event "Titled Tuesday Blitz May 23 Early 2023"]
[White "Manukyan, Artyom"]
[Black "Harsh Suresh"]
[WhiteFideId "13305786"]
[BlackFideId "45018464"]
[WhiteElo "2078"]
[BlackElo "2209"]
[Result "1-0"]
[Round "09"]
[TimeControl "180+2"]
[Date "2023.05.23"]
[WhiteClock "0:00:07"]
[BlackClock "0:00:00"]

1. Nf3 {[%clk 0:02:56]}  Nf6 {[%clk 0:02:58]} 2. c4 {[%clk 0:02:55]}  e6 {[%clk 0:02:56]} 3. g3 {[%clk 0:02:55]}  d5 {[%clk 0:02:54]} 4. Bg2 {[%clk 0:02:56]}  dxc4 {[%clk 0:02:54]} 5. O-O {[%clk 0:02:54]}  Be7 {[%clk 0:02:53]} 6. Qa4+ {[%clk 0:02:51]}  Nbd7 {[%clk 0:02:50]} 7. Qxc4 {[%clk 0:02:52]}  O-O {[%clk 0:02:50]} 8. d4 {[%clk 0:02:48]}  c5 {[%clk 0:02:46]} 9. Rd1 {[%clk 0:02:45]}  Qa5 {[%clk 0:02:44]} 10. Nc3 {[%clk 0:02:41]}  Nb6 {[%clk 0:02:43]} 11. Qb5 {[%clk 0:02:39]}  Qxb5 {[%clk 0:02:39]} 12. Nxb5 {[%clk 0:02:40]}  Bd7 {[%clk 0:02:38]} 13. Nc3 {[%clk 0:02:31]}  Bc6 {[%clk 0:02:38]} 14. Ne5 {[%clk 0:02:08]}  Bxg2 {[%clk 0:02:37]} 15. Kxg2 {[%clk 0:02:09]}  Rfd8 {[%clk 0:02:34]} 16. Be3 {[%clk 0:02:06]}  Nfd5 {[%clk 0:02:35]} 17. Nxd5 {[%clk 0:01:49]}  Nxd5 {[%clk 0:02:35]} 18. Kf3 {[%clk 0:01:50]}  Nxe3 {[%clk 0:02:30]} 19. fxe3 {[%clk 0:01:48]}  f6 {[%clk 0:02:28]} 20. Nc4 {[%clk 0:01:41]}  Kf7 {[%clk 0:02:28]} 21. Rac1 {[%clk 0:01:40]}  b6 {[%clk 0:02:23]} 22. a4 {[%clk 0:01:36]}  Rac8 {[%clk 0:02:09]} 23. b3 {[%clk 0:01:35]}  Rd5 {[%clk 0:02:04]} 24. dxc5 {[%clk 0:01:32]}  Rcxc5 {[%clk 0:01:55]} 25. e4 {[%clk 0:01:30]}  Rxd1 {[%clk 0:01:55]} 26. Rxd1 {[%clk 0:01:31]}  b5 {[%clk 0:01:53]} 27. Nd6+ {[%clk 0:01:08]}  Bxd6 {[%clk 0:01:31]} 28. Rxd6 {[%clk 0:01:09]}  Rc3+ {[%clk 0:01:08]} 29. e3 {[%clk 0:01:08]}  bxa4 {[%clk 0:00:40]} 30. bxa4 {[%clk 0:01:09]}  Rc7 {[%clk 0:00:41]} 31. Ra6 {[%clk 0:01:05]}  e5 {[%clk 0:00:41]} 32. g4 {[%clk 0:01:02]}  Ke7 {[%clk 0:00:38]} 33. h4 {[%clk 0:01:03]}  Kf7 {[%clk 0:00:36]} 34. g5 {[%clk 0:01:00]}  Kg6 {[%clk 0:00:20]} 35. Kg4 {[%clk 0:00:57]}  h5+ {[%clk 0:00:20]} 36. Kf3 {[%clk 0:00:29]}  Kf7 {[%clk 0:00:20]} 37. gxf6 {[%clk 0:00:27]}  gxf6 {[%clk 0:00:20]} 38. a5 {[%clk 0:00:26]}  Ke7 {[%clk 0:00:19]} 39. Ke2 {[%clk 0:00:24]}  Rd7 {[%clk 0:00:16]} 40. Kf3 {[%clk 0:00:23]}  Kf7 {[%clk 0:00:17]} 41. Rc6 {[%clk 0:00:22]}  Kg6 {[%clk 0:00:15]} 42. a6 {[%clk 0:00:17]}  Re7 {[%clk 0:00:15]} 43. Rd6 {[%clk 0:00:14]}  Rc7 {[%clk 0:00:14]} 44. Ke2 {[%clk 0:00:10]}  Rc2+ {[%clk 0:00:14]} 45. Kd3 {[%clk 0:00:10]}  Rh2 {[%clk 0:00:08]} 46. Rd7 {[%clk 0:00:10]}  Rxh4 {[%clk 0:00:08]} 47. Rxa7 {[%clk 0:00:11]}  Rh1 {[%clk 0:00:09]} 48. Ra8 {[%clk 0:00:11]}  Ra1 {[%clk 0:00:09]} 49. Ke2 {[%clk 0:00:11]}  Ra2+ {[%clk 0:00:07]} 50. Kf3 {[%clk 0:00:12]}  Ra3 {[%clk 0:00:07]} 51. Kf2 {[%clk 0:00:12]}  Kg7 {[%clk 0:00:07]} 52. Kf3 {[%clk 0:00:09]}  h4 {[%clk 0:00:07]} 53. Kg4 {[%clk 0:00:08]}  Rxe3 {[%clk 0:00:06]} 54. Kxh4 {[%clk 0:00:04]}  Kg6 {[%clk 0:00:04]} 55. a7 {[%clk 0:00:01]}  Rxe4+ {[%clk 0:00:04]} 56. Kg3 {[%clk 0:00:02]}  Ra4 {[%clk 0:00:01]} 57. Rg8+ {[%clk 0:00:02]}  Kf5 {[%clk 0:00:01]} 58. a8=Q {[%clk 0:00:03]}  Rxa8 {[%clk 0:00:02]} 59. Rxa8 {[%clk 0:00:04]}  Ke4 {[%clk 0:00:02]} 60. Ra4+ {[%clk 0:00:04]}  Ke3 {[%clk 0:00:02]} 61. Kg4 {[%clk 0:00:05]}  e4 {[%clk 0:00:01]} 62. Kf5 {[%clk 0:00:06]}  Kd3 {[%clk 0:00:00]} 63. Rxe4 {[%clk 0:00:07]} 1-0


[Site "https://www.chess.com"]

[Event "Titled Tuesday Blitz May 23 Early 2023"]
[White "Dimitrov, Atanas"]
[Black "Staudenhocker43"]
[WhiteFideId "2901315"]
[WhiteElo "2696"]
[BlackElo "2526"]
[Result "0-1"]
[Round "09"]
[TimeControl "180+2"]
[Date "2023.05.23"]
[WhiteClock "0:00:00"]
[BlackClock "0:01:05"]

1. Nf3 {[%clk 0:03:00]}  d5 {[%clk 0:02:58]} 2. e3 {[%clk 0:02:58]}  Nf6 {[%clk 0:02:58]} 3. c4 {[%clk 0:02:59]}  e6 {[%clk 0:02:57]} 4. Nc3 {[%clk 0:02:58]}  b6 {[%clk 0:02:57]} 5. b3 {[%clk 0:02:57]}  Bb7 {[%clk 0:02:57]} 6. Bb2 {[%clk 0:02:58]}  Nbd7 {[%clk 0:02:57]} 7. Be2 {[%clk 0:02:59]}  Bd6 {[%clk 0:02:56]} 8. d4 {[%clk 0:02:58]}  O-O {[%clk 0:02:55]} 9. O-O {[%clk 0:02:58]}  a6 {[%clk 0:02:55]} 10. Rc1 {[%clk 0:02:58]}  Qe7 {[%clk 0:02:52]} 11. Qc2 {[%clk 0:02:53]}  Rac8 {[%clk 0:02:50]} 12. Rfd1 {[%clk 0:02:53]}  c5 {[%clk 0:02:47]} 13. dxc5 {[%clk 0:02:49]}  Nxc5 {[%clk 0:02:37]} 14. cxd5 {[%clk 0:02:48]}  Nxd5 {[%clk 0:02:35]} 15. Nxd5 {[%clk 0:02:46]}  Bxd5 {[%clk 0:02:35]} 16. Qb1 {[%clk 0:02:43]}  Bb7 {[%clk 0:02:30]} 17. Qa1 {[%clk 0:02:42]}  f6 {[%clk 0:02:29]} 18. Nd4 {[%clk 0:02:40]}  Be5 {[%clk 0:02:23]} 19. h3 {[%clk 0:02:31]}  Rfd8 {[%clk 0:02:20]} 20. Rd2 {[%clk 0:02:15]}  Qe8 {[%clk 0:02:04]} 21. Rdc2 {[%clk 0:01:48]}  Qg6 {[%clk 0:02:00]} 22. Nf3 {[%clk 0:01:27]}  Bxb2 {[%clk 0:01:53]} 23. Qxb2 {[%clk 0:01:25]}  Rb8 {[%clk 0:01:36]} 24. Rc4 {[%clk 0:01:13]}  Bxf3 {[%clk 0:01:30]} 25. Bxf3 {[%clk 0:01:09]}  Nd3 {[%clk 0:01:30]} 26. Qa3 {[%clk 0:01:04]}  Nxc1 {[%clk 0:01:29]} 27. Rxc1 {[%clk 0:01:04]}  a5 {[%clk 0:01:27]} 28. Qe7 {[%clk 0:01:02]}  Qf7 {[%clk 0:01:26]} 29. Qa3 {[%clk 0:00:58]}  Rbc8 {[%clk 0:01:25]} 30. Rf1 {[%clk 0:00:55]}  Kh8 {[%clk 0:01:19]} 31. Qa4 {[%clk 0:00:55]}  f5 {[%clk 0:01:06]} 32. Qb4 {[%clk 0:00:00]}  axb4 {[%clk 0:01:05]} 0-1


[Site "https://www.chess.com"]

[Event "Titled Tuesday Blitz May 23 Early 2023"]
[White "Starozhilov, Leonid"]
[Black "Baches Garcia, Guillermo"]
[WhiteFideId "14106752"]
[BlackFideId "2209764"]
[WhiteElo "2352"]
[BlackElo "2516"]
[Result "1-0"]
[Round "09"]
[TimeControl "180+2"]
[Date "2023.05.23"]
[WhiteClock "0:01:46"]
[BlackClock "0:00:00"]

1. e4 {[%clk 0:03:00]}  d5 {[%clk 0:03:00]} 2. Nc3 {[%clk 0:02:59]}  dxe4 {[%clk 0:02:58]} 3. Nxe4 {[%clk 0:02:59]}  Qd5 {[%clk 0:02:58]} 4. Nc3 {[%clk 0:02:59]}  Qa5 {[%clk 0:02:58]} 5. g3 {[%clk 0:02:58]}  Nf6 {[%clk 0:02:57]} 6. Bg2 {[%clk 0:02:59]}  c6 {[%clk 0:02:57]} 7. Nge2 {[%clk 0:02:59]}  Bg4 {[%clk 0:02:57]} 8. h3 {[%clk 0:02:58]}  Bh5 {[%clk 0:02:56]} 9. d3 {[%clk 0:02:58]}  e6 {[%clk 0:02:56]} 10. O-O {[%clk 0:02:58]}  Nbd7 {[%clk 0:02:53]} 11. Bd2 {[%clk 0:02:57]}  Qc7 {[%clk 0:02:51]} 12. Qe1 {[%clk 0:02:50]}  Nd5 {[%clk 0:02:35]} 13. Nxd5 {[%clk 0:02:43]}  cxd5 {[%clk 0:02:35]} 14. Nf4 {[%clk 0:02:42]}  Bg6 {[%clk 0:02:34]} 15. Nxd5 {[%clk 0:02:42]}  Qd8 {[%clk 0:02:17]} 16. Nf4 {[%clk 0:02:36]}  Bd6 {[%clk 0:02:14]} 17. Nxg6 {[%clk 0:02:20]}  hxg6 {[%clk 0:02:15]} 18. Bc3 {[%clk 0:02:13]}  Kf8 {[%clk 0:02:01]} 19. Bxb7 {[%clk 0:02:09]}  Rxh3 {[%clk 0:01:43]} 20. Bxa8 {[%clk 0:02:01]}  Qxa8 {[%clk 0:01:43]} 21. Qe4 {[%clk 0:02:00]}  Qb8 {[%clk 0:01:39]} 22. Kg2 {[%clk 0:01:55]}  Nf6 {[%clk 0:00:00]} 23. Bxf6 {[%clk 0:01:46]} 1-0


[Site "https://www.chess.com"]

[Event "Titled Tuesday Blitz May 23 Early 2023"]
[White "Camilla_Lee"]
[Black "Tokman, Ariel"]
[BlackFideId "117420"]
[WhiteElo "2673"]
[BlackElo "2263"]
[Result "1-0"]
[Round "09"]
[TimeControl "180+2"]
[Date "2023.05.23"]
[WhiteClock "0:00:05"]
[BlackClock "0:00:00"]

1. e4 {[%clk 0:03:00]}  e5 {[%clk 0:02:55]} 2. Nf3 {[%clk 0:03:00]}  Nc6 {[%clk 0:02:54]} 3. Nc3 {[%clk 0:03:01]}  Nf6 {[%clk 0:02:54]} 4. d4 {[%clk 0:03:01]}  exd4 {[%clk 0:02:45]} 5. Nd5 {[%clk 0:03:00]}  Be7 {[%clk 0:02:38]} 6. Nxd4 {[%clk 0:03:00]}  d6 {[%clk 0:02:34]} 7. Nb5 {[%clk 0:02:58]}  Nxd5 {[%clk 0:02:32]} 8. exd5 {[%clk 0:02:59]}  Ne5 {[%clk 0:02:28]} 9. Be2 {[%clk 0:02:59]}  O-O {[%clk 0:02:18]} 10. O-O {[%clk 0:02:59]}  Bf6 {[%clk 0:02:17]} 11. c3 {[%clk 0:02:54]}  Re8 {[%clk 0:02:16]} 12. Be3 {[%clk 0:02:53]}  Bf5 {[%clk 0:02:04]} 13. Re1 {[%clk 0:02:43]}  Bg6 {[%clk 0:01:40]} 14. f4 {[%clk 0:02:19]}  Nd7 {[%clk 0:01:39]} 15. Bf3 {[%clk 0:02:20]}  Nc5 {[%clk 0:01:34]} 16. Bxc5 {[%clk 0:02:15]}  Rxe1+ {[%clk 0:01:34]} 17. Qxe1 {[%clk 0:02:16]}  dxc5 {[%clk 0:01:34]} 18. d6 {[%clk 0:02:07]}  cxd6 {[%clk 0:01:12]} 19. Rd1 {[%clk 0:02:06]}  Qb6 {[%clk 0:01:00]} 20. Nxd6 {[%clk 0:01:28]}  Qxb2 {[%clk 0:01:00]} 21. Nxb7 {[%clk 0:01:28]}  Bxc3 {[%clk 0:00:54]} 22. Qe7 {[%clk 0:01:17]}  Bd4+ {[%clk 0:00:53]} 23. Kh1 {[%clk 0:01:16]}  Rf8 {[%clk 0:00:31]} 24. Nd6 {[%clk 0:00:56]}  Qxa2 {[%clk 0:00:27]} 25. f5 {[%clk 0:00:50]}  Bf6 {[%clk 0:00:20]} 26. Qc7 {[%clk 0:00:28]}  Bd8 {[%clk 0:00:16]} 27. Qxc5 {[%clk 0:00:19]}  Bb6 {[%clk 0:00:14]} 28. Qe5 {[%clk 0:00:12]}  Qf2 {[%clk 0:00:10]} 29. fxg6 {[%clk 0:00:11]}  hxg6 {[%clk 0:00:11]} 30. Qe7 {[%clk 0:00:08]}  Bc5 {[%clk 0:00:10]} 31. Qc7 {[%clk 0:00:05]}  g5 {[%clk 0:00:09]} 32. Ne4 {[%clk 0:00:05]}  Bb6 {[%clk 0:00:07]} 33. Nxf2 {[%clk 0:00:03]}  Bxc7 {[%clk 0:00:07]} 34. Ne4 {[%clk 0:00:04]}  f6 {[%clk 0:00:06]} 35. Nc5 {[%clk 0:00:04]}  Be5 {[%clk 0:00:05]} 36. Bd5+ {[%clk 0:00:05]}  Kh7 {[%clk 0:00:05]} 37. Rd3 {[%clk 0:00:05]}  Kg6 {[%clk 0:00:04]} 38. g3 {[%clk 0:00:04]}  Rc8 {[%clk 0:00:04]} 39. Ne4 {[%clk 0:00:04]}  Rc1+ {[%clk 0:00:04]} 40. Kg2 {[%clk 0:00:04]}  g4 {[%clk 0:00:03]} 41. Nf2 {[%clk 0:00:05]}  Kg5 {[%clk 0:00:02]} 42. Be6 {[%clk 0:00:05]}  f5 {[%clk 0:00:02]} 43. Rd5 {[%clk 0:00:05]}  Kf6 {[%clk 0:00:01]} 44. Bd7 {[%clk 0:00:06]}  Rc2 {[%clk 0:00:02]} 45. Rd1 {[%clk 0:00:05]}  g6 {[%clk 0:00:02]} 46. Kf1 {[%clk 0:00:05]}  Ke7 {[%clk 0:00:03]} 47. Ba4 {[%clk 0:00:05]}  Bd6 {[%clk 0:00:00]} 48. Bxc2 {[%clk 0:00:05]} 1-0


[Site "https://www.chess.com"]

[Event "Titled Tuesday Blitz May 23 Early 2023"]
[White "Devaev, Alexander"]
[Black "Nagare Kaivalya Sandip"]
[WhiteFideId "4169395"]
[BlackFideId "25957929"]
[WhiteElo "2172"]
[BlackElo "2024"]
[Result "1-0"]
[Round "09"]
[TimeControl "180+2"]
[Date "2023.05.23"]
[WhiteClock "0:00:37"]
[BlackClock "0:00:42"]

1. Nf3 {[%clk 0:02:36]}  d5 {[%clk 0:02:59]} 2. c4 {[%clk 0:02:36]}  d4 {[%clk 0:02:58]} 3. d3 {[%clk 0:02:36]}  c5 {[%clk 0:02:56]} 4. e3 {[%clk 0:02:37]}  Nc6 {[%clk 0:02:56]} 5. Be2 {[%clk 0:02:32]}  e5 {[%clk 0:02:56]} 6. e4 {[%clk 0:02:33]}  g6 {[%clk 0:02:51]} 7. h3 {[%clk 0:02:29]}  Bg7 {[%clk 0:02:51]} 8. Nbd2 {[%clk 0:02:21]}  Nge7 {[%clk 0:02:51]} 9. O-O {[%clk 0:02:22]}  h6 {[%clk 0:02:50]} 10. a3 {[%clk 0:02:20]}  O-O {[%clk 0:02:48]} 11. Rb1 {[%clk 0:02:20]}  f5 {[%clk 0:02:48]} 12. b4 {[%clk 0:02:17]}  f4 {[%clk 0:02:48]} 13. bxc5 {[%clk 0:02:14]}  g5 {[%clk 0:02:48]} 14. Nh2 {[%clk 0:01:56]}  Qc7 {[%clk 0:02:46]} 15. Bg4 {[%clk 0:01:52]}  Nd8 {[%clk 0:02:44]} 16. Nb3 {[%clk 0:01:50]}  Ne6 {[%clk 0:02:42]} 17. Bd2 {[%clk 0:01:48]}  Nxc5 {[%clk 0:02:39]} 18. Bb4 {[%clk 0:01:44]}  b6 {[%clk 0:02:35]} 19. Bxc8 {[%clk 0:01:30]}  Raxc8 {[%clk 0:02:35]} 20. Bxc5 {[%clk 0:01:30]}  bxc5 {[%clk 0:02:35]} 21. Nd2 {[%clk 0:01:26]}  Qd7 {[%clk 0:02:33]} 22. Qg4 {[%clk 0:01:26]}  Qxg4 {[%clk 0:02:33]} 23. hxg4 {[%clk 0:01:25]}  Rb8 {[%clk 0:02:29]} 24. Rb5 {[%clk 0:01:25]}  Rxb5 {[%clk 0:02:27]} 25. cxb5 {[%clk 0:01:25]}  Rb8 {[%clk 0:02:28]} 26. a4 {[%clk 0:01:25]}  Nc8 {[%clk 0:02:23]} 27. Nc4 {[%clk 0:01:12]}  Nb6 {[%clk 0:02:23]} 28. Nxb6 {[%clk 0:01:07]}  axb6 {[%clk 0:02:22]} 29. Ra1 {[%clk 0:01:08]}  Kf7 {[%clk 0:02:09]} 30. Nf3 {[%clk 0:01:07]}  Kg6 {[%clk 0:02:05]} 31. Nd2 {[%clk 0:01:08]}  h5 {[%clk 0:02:05]} 32. f3 {[%clk 0:01:03]}  Rh8 {[%clk 0:01:48]} 33. gxh5+ {[%clk 0:00:57]}  Kxh5 {[%clk 0:01:47]} 34. Nc4 {[%clk 0:00:58]}  g4 {[%clk 0:01:45]} 35. Nxb6 {[%clk 0:00:49]}  Kh4 {[%clk 0:01:40]} 36. fxg4 {[%clk 0:00:47]}  Kg3 {[%clk 0:01:39]} 37. Rf1 {[%clk 0:00:47]}  f3 {[%clk 0:01:31]} 38. Rxf3+ {[%clk 0:00:47]}  Kxg4 {[%clk 0:01:30]} 39. Nc4 {[%clk 0:00:46]}  Rb8 {[%clk 0:01:05]} 40. b6 {[%clk 0:00:43]}  Kh5 {[%clk 0:00:56]} 41. a5 {[%clk 0:00:40]}  Bh6 {[%clk 0:00:55]} 42. Rf5+ {[%clk 0:00:39]}  Kg6 {[%clk 0:00:53]} 43. Rxe5 {[%clk 0:00:39]}  Be3+ {[%clk 0:00:48]} 44. Nxe3 {[%clk 0:00:37]}  dxe3 {[%clk 0:00:42]} 45. Kf1 {[%clk 0:00:37]} 1-0


[Site "https://www.chess.com"]

[Event "Titled Tuesday Blitz May 23 Early 2023"]
[White "Turzo, Attila"]
[Black "Hua, Lefong"]
[WhiteFideId "704954"]
[BlackFideId "2602253"]
[WhiteElo "2504"]
[BlackElo "2630"]
[Result "0-1"]
[Round "09"]
[TimeControl "180+2"]
[Date "2023.05.23"]
[WhiteClock "0:01:15"]
[BlackClock "0:02:05"]

1. d4 {[%clk 0:03:00]}  Nf6 {[%clk 0:03:00]} 2. c4 {[%clk 0:03:01]}  c5 {[%clk 0:02:59]} 3. d5 {[%clk 0:02:58]}  e6 {[%clk 0:03:00]} 4. Nc3 {[%clk 0:02:57]}  exd5 {[%clk 0:03:00]} 5. cxd5 {[%clk 0:02:58]}  d6 {[%clk 0:03:01]} 6. e4 {[%clk 0:02:58]}  g6 {[%clk 0:03:01]} 7. f4 {[%clk 0:02:57]}  Bg7 {[%clk 0:03:02]} 8. Bb5+ {[%clk 0:02:51]}  Nbd7 {[%clk 0:03:02]} 9. Nf3 {[%clk 0:02:50]}  O-O {[%clk 0:02:59]} 10. O-O {[%clk 0:02:49]}  a6 {[%clk 0:02:59]} 11. Bd3 {[%clk 0:02:37]}  b5 {[%clk 0:02:57]} 12. a4 {[%clk 0:02:31]}  b4 {[%clk 0:02:51]} 13. Nb1 {[%clk 0:02:30]}  Re8 {[%clk 0:02:47]} 14. Nbd2 {[%clk 0:02:27]}  a5 {[%clk 0:02:47]} 15. Qc2 {[%clk 0:02:24]}  Nb6 {[%clk 0:02:41]} 16. Rd1 {[%clk 0:02:02]}  c4 {[%clk 0:02:10]} 17. Bxc4 {[%clk 0:01:49]}  Nxc4 {[%clk 0:02:09]} 18. Qxc4 {[%clk 0:01:49]}  Ba6 {[%clk 0:02:08]} 19. Qc2 {[%clk 0:01:47]}  Rc8 {[%clk 0:02:08]} 20. Qb1 {[%clk 0:01:47]}  Qb6+ {[%clk 0:02:05]} 21. Kh1 {[%clk 0:01:15]}  Ng4 {[%clk 0:02:05]} 0-1


[Site "https://www.chess.com"]